bitfinex-derivatives/quotes_ETHF0:USTF0_20250331
["timestamp","ask_amount","ask_price","bid_price","bid_amount"]
[1743409433170,1.11101,1800.4,1800.3,1.11099]
[1743409434361,1.11101,1800.4,1800.2,4.6497]
[1743409434362,1.1192557,1800.5,1800.4,1.11095]
[1743409434567,1.1192557,1800.5,1800.2,7.4356357]
[1743409434568,1.11095,1800.4,1800.3,2.53126]
[1743409434867,1.11097,1800.4,1800.3,1.11096]
[1743409435368,2.4966557,1800.5,1800.4,1.11095]
[1743409435560,0.0083257,1800.5,1800.4,1.11095]
[1743409435964,1.1192157,1800.5,1800.4,1.11095]
[1743409436670,1.11098,1800.4,1800.3,1.11096]
[1743409437074,1.1192257,1800.5,1800.4,1.11095]
[1743409437273,1.11098,1800.4,1800.3,1.11095]
[1743409437872,1.11101,1800.3,1800.2,5.7690557]
[1743409438779,2.60365,1800.4,1800.3,1.11101]
[1743409439077,1.1192557,1800.5,1800.4,1.11095]
[1743409439274,2.5828557,1800.5,1800.4,1.11095]
[1743409439670,2.5828157,1800.5,1800.4,1.11095]
[1743409439977,2.5828157,1800.5,1800.4,4.31875]
[1743409439978,0.0083257,1800.5,1800.4,4.31875]
[1743409440177,1.11071,1800.8,1800.7,1.11076]
[1743409440373,1.11076,1800.7,1800.6,4.31857]
[1743409440576,1.11076,1800.7,1800.6,1.11077]
[1743409441374,1.4719257,1800.8,1800.4,3.2078]
[1743409441575,1.11082,1800.7,1800.6,1.1108]
[1743409442180,2.5826657,1800.8,1800.7,1.11076]
[1743409442478,1.1190657,1800.8,1800.7,1.11076]
[1743409442673,1.1190257,1800.8,1800.7,1.11076]
[1743409443473,0.0083257,1800.8,1800.7,1.11076]
[1743409444082,1.1190257,1800.8,1800.7,1.11076]
[1743409444777,0.0083257,1800.8,1800.7,1.11076]
[1743409445175,1.1190257,1800.8,1800.7,1.11076]
[1743409445376,2.4897257,1800.8,1800.7,1.11076]
[1743409447880,1.11076,1800.7,1800.6,1.82471]
[1743409448386,1.11076,1800.7,1800.6,1.8247]
[1743409448580,1.11076,1800.7,1800.6,0.7139]
[1743409448881,1.11076,1800.7,1800.6,1.82472]
[1743409449076,1.11089,1800.6,1800.5,1.11085]
[1743409449276,1.11077,1800.7,1800.6,1.11076]
[1743409449882,1.11082,1800.6,1800.5,1.85843]
[1743409450074,1.11082,1800.6,1800.5,3.34493]
[1743409451283,2.55592,1800.7,1800.6,1.11082]
[1743409451483,0.0083257,1800.8,1800.6,1.3952]
[1743409451686,1.4506257,1800.8,1800.6,1.3952]
[1743409451983,2.5613757,1800.8,1800.7,1.11076]
[1743409452382,0.0083257,1800.8,1800.7,1.11076]
[1743409452588,1.1190257,1800.8,1800.7,1.11076]
[1743409452976,1.11076,1800.7,1800.6,2.50598]
[1743409453689,2.5613857,1800.8,1800.7,1.11076]
[1743409453884,2.5613857,1800.8,1800.7,2.50596]
[1743409454087,2.5613257,1800.8,1800.7,2.50596]
[1743409454992,1.1190257,1800.8,1800.7,2.50596]
[1743409456803,0.0083257,1800.8,1800.7,2.50596]
[1743409457102,1.11046,1801.3,1801.2,1.11043]
[1743409457394,1.4584,1801.3,1801.2,1.11043]
[1743409457595,2.56879,1801.3,1801.2,1.11043]
[1743409458098,2.56879,1801.3,1801.1,1.4822257]
[1743409458397,1.11045,1801.2,1801.1,1.4822257]
[1743409458599,2.56885,1801.2,1801.1,1.4822257]
[1743409459595,2.56885,1801.2,1801.1,0.0083257]
[1743409460396,1.11064,1800.9,1800.8,1.3984]
[1743409460592,1.1107,1800.8,1800.7,5.04226]
[1743409460799,2.6058,1800.8,1800.7,5.04226]
[1743409460988,2.6058,1800.8,1800.7,3.23286]
[1743409461190,2.6058,1800.8,1800.7,1.3984]
[1743409466395,1.11068,1800.9,1800.8,1.11064]
[1743409466601,1.11068,1800.9,1800.8,0.7343]
[1743409466798,1.11068,1800.9,1800.8,1.845]
[1743409466998,1.11068,1800.9,1800.8,3.3336]
[1743409467393,1.11068,1800.9,1800.8,2.2229]
[1743409467801,1.11068,1800.9,1800.8,3.3336]
[1743409468799,1.11054,1801.1,1801.0,1.11052]
[1743409468997,1.3753,1801.1,1801.0,1.11052]
[1743409469195,2.48582,1801.1,1801.0,1.83182]
[1743409469898,1.11051,1801.2,1801.1,1.11049]
[1743409470103,2.56395,1801.2,1801.1,3.35779]
[1743409471597,1.11058,1801.0,1800.9,3.2078]
[1743409471906,1.11058,1801.0,1800.9,1.4936]
[1743409472404,2.50618,1801.0,1800.9,1.4936]
[1743409474305,3.20678,1801.0,1800.9,1.4936]
[1743409476607,8.28434,1801.1,1801.0,1.11058]
[1743409476810,6.47794,1801.1,1801.0,1.11058]
[1743409477101,1.11058,1801.0,1800.9,2.60422]
[1743409477703,1.11057,1801.1,1801.0,1.11058]
[1743409478108,1.11058,1801.0,1800.9,2.60419]
[1743409478609,1.11058,1801.0,1800.9,1.4936]
[1743409479304,1.11058,1801.0,1800.9,2.60424]
[1743409481905,1.11044,1801.3,1801.2,1.11042]
[1743409482112,1.11052,1801.2,1801.1,1.1105]
[1743409482302,2.57602,1801.2,1801.1,1.1105]
[1743409482706,2.57602,1801.2,1801.1,1.8626]
[1743409483010,2.57602,1801.2,1801.1,0.7521]
[1743409483613,2.57602,1801.2,1801.1,3.26202]
[1743409483802,3.2161257,1801.4,1801.1,4.92776]
[1743409484002,1.11041,1801.3,1801.2,3.20949]
[1743409485412,8.6456257,1801.4,1801.3,1.11039]
[1743409485607,5.7919557,1801.4,1801.3,2.53999]
[1743409485810,4.3264557,1801.4,1801.3,2.53999]
[1743409486210,4.3264557,1801.4,1801.3,1.4296]
[1743409488112,1.11039,1801.3,1801.2,1.81015]
[1743409488314,2.49439,1801.3,1801.2,0.6997]
[1743409488503,2.49439,1801.3,1801.2,1.81015]
[1743409488708,2.49439,1801.3,1801.2,0.6997]
[1743409489309,2.49439,1801.3,1801.2,1.81015]
[1743409489512,2.49439,1801.3,1801.2,2.1038]
[1743409489711,2.49439,1801.3,1801.2,3.21425]
[1743409490419,2.49439,1801.3,1801.2,2.1038]
[1743409493821,2.49439,1801.3,1801.2,3.21425]
[1743409495726,2.49439,1801.3,1801.2,2.1038]
[1743409497228,1.11064,1800.9,1800.8,3.2078]
[1743409497719,1.1107,1800.8,1800.7,2.8618]
[1743409498025,1.1107,1800.8,1800.7,3.97256]
[1743409498921,1.1107,1800.8,1800.7,2.8618]
[1743409499118,1.1107,1800.8,1800.7,3.97256]
[1743409500121,2.60769,1800.9,1800.8,1.1107]
[1743409500328,2.60769,1800.9,1800.8,1.3992]
[1743409500929,1.1107,1800.8,1800.7,1.4366]
[1743409501226,1.11076,1800.7,1800.6,1.4075257]
[1743409501725,2.56286,1800.7,1800.6,2.5183457]
[1743409501929,1.11076,1800.7,1800.6,2.5183457]
[1743409502115,6.52382,1800.8,1800.7,1.11076]
[1743409502318,6.52382,1800.8,1800.7,1.3992]
[1743409504530,5.07172,1800.8,1800.7,1.3992]
[1743409505318,5.07172,1800.8,1800.7,2.50996]
[1743409506227,1.11072,1800.8,1800.7,1.3992]
[1743409509834,1.11072,1800.8,1800.7,2.50996]
[1743409510037,1.3892,1800.9,1800.8,1.1107]
[1743409510339,1.11064,1800.9,1800.8,3.18709]
[1743409510541,2.57324,1800.9,1800.8,3.18709]
[1743409511037,2.57324,1800.9,1800.8,2.0764]
[1743409511334,1.11076,1800.7,1800.6,1.1191057]
[1743409511528,1.11076,1800.7,1800.6,1.8147457]
[1743409511931,2.57334,1800.8,1800.7,1.11076]
[1743409512330,2.57333,1800.8,1800.7,1.11076]
[1743409512531,1.11076,1800.7,1800.6,1.8146857]
[1743409512731,2.57335,1800.8,1800.7,2.52006]
[1743409512929,1.11075,1800.8,1800.7,2.52006]
[1743409513326,1.4309,1800.9,1800.7,1.4093]
[1743409513530,4.31842,1801.0,1800.7,2.77692]
[1743409513731,1.11067,1800.9,1800.8,1.11066]
[1743409513938,1.11076,1800.7,1800.6,1.8146957]
[1743409514235,1.11075,1800.8,1800.7,1.11073]
[1743409514434,2.54165,1800.8,1800.7,1.11073]
[1743409515336,2.54165,1800.8,1800.7,1.11076]
[1743409515733,1.11076,1800.7,1800.6,1.8147057]
[1743409515940,1.4538,1800.7,1800.6,1.8147057]
[1743409516438,2.56456,1800.7,1800.6,1.8147057]
[1743409517139,2.56456,1800.7,1800.6,0.7039257]
[1743409517340,2.56456,1800.7,1800.6,1.8147457]
[1743409519139,2.56456,1800.7,1800.6,0.7039257]
[1743409519540,2.56456,1800.7,1800.6,1.8147457]
[1743409520535,2.56456,1800.7,1800.6,0.0083257]
[1743409520740,7.93726,1800.7,1800.6,0.0083257]
[1743409520942,1.11101,1800.3,1800.2,1.79993]
[1743409522534,1.11101,1800.3,1800.1,1.1194557]
[1743409522535,1.11107,1800.2,1800.1,1.1194557]
[1743409523036,2.60967,1800.2,1800.1,1.8586557]
[1743409523239,2.60967,1800.2,1800.1,0.7475257]
[1743409523646,4.7064,1800.2,1799.7,3.2078]
[1743409523844,1.11132,1799.8,1799.7,4.6654]
[1743409524733,1.4625,1799.9,1799.7,5.77678]
[1743409524938,1.11132,1799.8,1799.7,4.6654]
[1743409526542,1.11132,1799.8,1799.7,5.77678]
[1743409526737,1.11132,1799.8,1799.7,4.6654]
[1743409527448,2.57381,1799.9,1799.7,5.77678]
[1743409527651,1.11132,1799.8,1799.7,5.77678]
[1743409527945,1.4128,1799.8,1799.7,5.77678]
[1743409528854,1.1113,1799.9,1799.8,1.11132]
[1743409529149,1.4128,1800.0,1799.7,4.6654]
[1743409529349,2.52403,1800.0,1799.9,1.11126]
[1743409529548,2.52403,1800.0,1799.8,1.11127]
[1743409529744,1.11126,1799.9,1799.8,1.11127]
[1743409529951,1.11109,1800.2,1800.1,1.11111]
[1743409530148,2.50882,1800.2,1800.1,1.11113]
[1743409530453,2.50882,1800.2,1799.9,1.4456]
[1743409530656,2.50882,1800.2,1800.1,1.11113]
[1743409530854,1.11113,1800.1,1800.0,3.29665]
[1743409531049,1.11113,1800.1,1800.0,1.85105]
[1743409531554,1.3977,1800.2,1800.0,0.7399]
[1743409531745,1.11113,1800.1,1800.0,1.85106]
[1743409533049,0.0083257,1800.4,1800.3,1.11101]
[1743409534054,1.1192757,1800.4,1800.3,1.11101]
[1743409534448,1.11101,1800.3,1800.2,4.31883]
[1743409534645,2.58341,1800.3,1800.2,1.11103]
[1743409534859,1.4724,1800.3,1800.2,1.11103]
[1743409535252,1.4724,1800.3,1800.0,3.9477]
[1743409535556,1.11113,1800.1,1800.0,5.05885]
[1743409535858,2.58346,1800.3,1800.2,1.11107]
[1743409536060,1.4724,1800.3,1800.2,1.11107]
[1743409537152,1.4724,1800.3,1800.0,4.31894]
[1743409537356,1.11113,1800.1,1800.0,5.01504]
[1743409537547,1.11113,1800.2,1800.0,5.01504]
[1743409537749,2.56433,1800.2,1800.1,1.11113]
[1743409539557,1.4532,1800.2,1800.1,1.11113]
[1743409539865,2.56427,1800.2,1800.1,1.11113]
[1743409543260,2.56427,1800.2,1800.0,3.9039]
[1743409543261,1.11113,1800.1,1800.0,3.9039]
[1743409543461,2.50293,1800.1,1800.0,3.9039]
[1743409544052,2.50293,1800.1,1800.0,5.0151]
[1743409546361,1.11103,1800.3,1800.0,6.68178]
[1743409546659,6.5786257,1800.4,1800.3,1.11101]
[1743409546960,6.5786257,1800.4,1800.0,6.68174]
[1743409546961,1.11105,1800.3,1800.2,1.11104]
[1743409547460,0.0083257,1800.4,1800.3,1.11101]
[1743409547753,4.6576,1801.0,1800.3,0.7185]
[1743409547954,8.27343,1801.0,1800.7,5.98469]
[1743409548160,4.31843,1801.0,1800.9,1.11064]
[1743409548356,1.11064,1800.9,1800.8,1.11066]
[1743409548659,1.1107,1800.8,1800.7,4.31852]
[1743409548866,1.11076,1800.7,1800.6,1.11081]
[1743409549160,5.9926257,1801.0,1800.5,3.2161257]
[1743409549351,5.9926257,1801.0,1800.7,1.11076]
[1743409549352,1.11075,1800.8,1800.7,1.11076]
[1743409549958,1.1107,1800.8,1800.7,1.11076]
[1743409550155,1.1107,1800.8,1800.7,2.54706]
[1743409550756,4.3267557,1801.0,1800.8,1.1107]
[1743409551062,4.3267557,1801.0,1800.9,1.4363]
[1743409551457,4.3267057,1801.0,1800.9,1.4363]
[1743409553257,3.2161257,1801.0,1800.9,2.54694]
[1743409553562,4.3267057,1801.0,1800.9,1.4363]
[1743409554165,4.3267057,1801.0,1800.9,2.54694]
[1743409554671,0.0083257,1801.0,1800.9,2.54694]
[1743409556868,1.1189057,1801.0,1800.9,2.54694]
[1743409558168,0.0083257,1801.0,1800.9,5.75474]
[1743409558355,9.1778,1801.5,1800.9,5.75474]
[1743409558356,7.1598,1801.5,1801.2,2.77601]
[1743409558562,1.11033,1801.4,1801.3,2.1837]
[1743409558767,1.11045,1801.2,1801.1,3.2078]
[1743409559069,1.11063,1801.0,1800.9,1.11064]
[1743409559260,1.11063,1801.0,1800.9,1.43]
[1743409559668,0.0083257,1801.1,1800.9,1.43]
[1743409559966,0.0083257,1801.1,1801.0,1.11058]
[1743409560164,1.1188457,1801.1,1801.0,1.11058]
[1743409560359,0.0083257,1801.1,1801.0,1.11058]
[1743409560567,1.1188457,1801.1,1801.0,1.11058]
[1743409560767,2.6311657,1801.1,1801.0,1.11058]
[1743409561167,1.5206257,1801.1,1801.0,1.11058]
[1743409561365,1.11058,1801.0,1800.9,2.54062]
[1743409561569,2.6311857,1801.1,1801.0,1.11058]
[1743409561770,2.6311457,1801.1,1801.0,2.53058]
[1743409562164,1.5206257,1801.1,1801.0,2.53058]
[1743409562564,0.0083257,1801.1,1801.0,2.53058]
[1743409562758,1.1188457,1801.1,1801.0,2.53058]
[1743409563868,0.0083257,1801.1,1801.0,5.73838]
[1743409566869,5.98333,1801.6,1801.0,5.73838]
[1743409566870,3.95,1801.7,1801.5,1.11023]
[1743409567166,2.50313,1801.6,1801.5,1.11023]
[1743409567358,2.50313,1801.6,1801.4,1.85077]
[1743409567359,1.11027,1801.5,1801.4,1.85077]
[1743409567565,1.3929,1801.6,1801.5,1.11027]
[1743409567766,3.2078,1801.8,1801.7,1.11015]
[1743409568474,1.3929,1801.8,1801.7,1.11015]
[1743409568967,0.0083257,1801.9,1801.8,1.11008]
[1743409569175,0.0083257,1801.9,1801.8,1.86098]
[1743409570075,0.0083257,1801.9,1801.8,2.60658]
[1743409570372,1.1183457,1801.9,1801.8,2.60658]
[1743409570571,0.0083257,1801.9,1801.8,2.60658]
[1743409570771,1.1183457,1801.9,1801.8,1.86098]
[1743409570971,1.4877257,1801.9,1801.8,2.58658]
[1743409573665,2.5977457,1801.9,1801.8,2.58658]
[1743409574174,1.4877257,1801.9,1801.8,2.58658]
[1743409574573,0.0083257,1801.9,1801.8,2.58658]
[1743409576772,1.4385257,1801.9,1801.8,2.58658]
[1743409578982,0.0083257,1801.9,1801.8,2.58658]
[1743409580073,0.0083257,1801.9,1801.8,3.99158]
[1743409584185,1.1183457,1801.9,1801.8,3.99158]
[1743409584485,0.0083257,1801.9,1801.8,3.99158]
[1743409587680,1.10977,1802.4,1802.3,1.10978]
[1743409587879,2.61377,1802.4,1802.3,1.10978]
[1743409588281,1.504,1802.4,1802.3,1.10978]
[1743409588481,1.504,1802.4,1802.3,2.58828]
[1743409588675,2.61372,1802.4,1802.3,2.58828]
[1743409589079,3.05473297,1802.4,1802.3,2.58828]
[1743409590700,1.94501297,1802.4,1802.3,2.58828]
[1743409590878,1.94501297,1802.4,1802.3,3.31088]
[1743409594688,3.05473297,1802.4,1802.3,3.31088]
[1743409594893,1.94501297,1802.4,1802.3,3.31088]
[1743409596493,3.05473297,1802.4,1802.3,3.31088]
[1743409602385,2.61372,1802.4,1802.3,3.31088]
[1743409602586,1.504,1802.4,1802.3,3.31088]
[1743409602789,0.00555048,1802.5,1802.4,1.10972]
[1743409602989,0.00555048,1802.5,1802.4,2.50992]
[1743409603184,1.11520048,1802.5,1802.4,2.50992]
[1743409605394,0.00555048,1802.5,1802.4,2.50992]
[1743409608495,0.00555048,1802.5,1802.4,5.71772]
[1743409609895,1.10945,1802.9,1802.5,2.774]
[1743409610191,1.10945,1802.9,1802.8,1.10942]
[1743409610899,2.48747,1803.0,1802.9,1.10941]
[1743409611088,1.3781,1803.0,1802.9,1.10941]
[1743409611288,2.48745,1803.0,1802.9,1.10941]
[1743409611493,1.3781,1803.0,1802.9,1.10941]
[1743409612001,1.3781,1803.0,1802.9,2.59401]
[1743409612199,0.7265,1803.3,1803.0,2.77332]
[1743409612396,1.4416,1803.2,1803.1,3.27088]
[1743409613088,1.4416,1803.2,1803.1,4.00608]
[1743409613295,3.939,1803.4,1803.3,1.10916]
[1743409613493,1.4416,1803.4,1803.3,1.10916]
[1743409615303,1.4416,1803.4,1803.3,2.49206]
[1743409615602,8.95262,1803.6,1803.5,1.10904]
[1743409616805,8.95262,1803.6,1803.4,2.49195]
[1743409617006,2.55084,1803.5,1803.4,2.49195]
[1743409617408,1.4418,1803.5,1803.4,2.49195]
[1743409617602,2.55084,1803.5,1803.4,2.49195]
[1743409618107,1.4418,1803.5,1803.1,1.4825]
[1743409618404,2.6138,1803.4,1803.3,1.10916]
[1743409618705,1.5047,1803.4,1803.3,1.10916]
[1743409619100,2.6138,1803.4,1803.3,1.10916]
[1743409619403,1.5047,1803.4,1803.3,1.10916]
[1743409619609,1.10905,1803.5,1803.4,1.10907]
[1743409619811,2.61375,1803.5,1803.4,1.10907]
[1743409620506,2.61375,1803.5,1803.4,1.82387]
[1743409620905,1.10898,1803.6,1803.5,1.10904]
[1743409621107,1.10898,1803.6,1803.5,3.32164]
[1743409621108,2.61368,1803.6,1803.5,3.32164]
[1743409621502,2.61368,1803.6,1803.5,2.2126]
[1743409621707,2.61368,1803.6,1803.5,3.32164]
[1743409622510,0.721,1803.9,1803.7,1.10889]
[1743409622704,3.21009,1803.9,1803.8,1.4724]
[1743409623609,2.48909,1803.9,1803.8,1.4724]
[1743409626108,2.48909,1803.9,1803.8,2.58125]
[1743409626305,3.9278,1804.1,1803.8,2.58125]
[1743409626499,2.57553,1804.0,1803.9,2.57829]
[1743409626705,1.1088,1803.9,1803.8,1.1088]
[1743409627108,1.10885,1803.8,1803.7,5.05607]
[1743409627304,1.10884,1803.9,1803.8,1.10885]
[1743409628013,4.23865,1804.0,1803.7,3.9472]
[1743409628311,3.4918,1804.1,1803.8,1.10885]
[1743409628312,1.10884,1803.9,1803.8,1.10885]
[1743409628508,2.58244,1803.9,1803.8,1.10885]
[1743409628812,1.4736,1803.9,1803.8,1.10885]
[1743409629611,2.58239,1803.9,1803.8,1.10885]
[1743409631313,1.10885,1803.8,1803.7,5.05606]
[1743409631613,2.58245,1803.9,1803.8,1.10885]
[1743409632308,1.10885,1803.8,1803.7,5.05606]
[1743409632617,2.58244,1803.9,1803.8,1.10885]
[1743409633304,1.10885,1803.8,1803.7,5.05607]
[1743409633612,2.58244,1803.9,1803.8,1.10885]
[1743409634001,1.10892,1803.7,1803.6,0.0083257]
[1743409634205,2.49231,1803.8,1803.7,1.10892]
[1743409634406,3.2078,1804.0,1803.8,1.10882]
[1743409634613,2.49213,1804.0,1803.9,0.747]
[1743409634913,2.49213,1804.0,1803.9,1.85579]
[1743409635115,2.49213,1804.0,1803.9,0.747]
[1743409636812,1.10885,1803.8,1803.7,3.9657]
[1743409637208,1.10885,1803.8,1803.7,3.2078]
[1743409637417,1.10892,1803.7,1803.6,0.0083257]
[1743409637713,3.29742,1803.7,1803.6,0.0083257]
[1743409640616,3.29742,1803.7,1803.6,1.4570257]
[1743409642019,6.50522,1803.7,1803.6,0.0083257]
[1743409642414,10.43622,1803.7,1803.6,0.0083257]
[1743409643714,9.69412,1803.7,1803.6,0.0083257]
[1743409644318,6.48632,1803.7,1803.6,0.0083257]
[1743409644711,7.20312,1803.7,1803.6,0.0083257]
[1743409645419,10.41092,1803.7,1803.6,0.0083257]
[1743409645714,7.20312,1803.7,1803.6,0.0083257]
[1743409647116,7.20312,1803.7,1803.6,1.4224257]
[1743409649705,6.48632,1803.7,1803.6,1.4224257]
[1743409650106,5.03886,1803.8,1803.7,1.10886]
[1743409650311,5.03886,1803.8,1803.7,2.58396]
[1743409650312,3.93,1803.8,1803.7,2.58396]
[1743409650511,2.62133,1803.9,1803.8,1.10885]
[1743409650714,6.55133,1803.9,1803.8,2.61615]
[1743409650912,1.10883,1803.9,1803.8,2.61615]
[1743409651522,2.62123,1804.0,1803.9,1.10879]
[1743409651722,2.62123,1804.0,1803.9,2.51579]
[1743409652013,2.62123,1804.0,1803.9,1.407]
[1743409652213,1.5125,1804.0,1803.9,2.51579]
[1743409652618,2.62123,1804.0,1803.9,2.51579]
[1743409652819,2.62123,1804.0,1803.9,1.407]
[1743409655928,2.62123,1804.0,1803.9,2.51579]
[1743409658028,2.62123,1804.0,1803.9,1.407]
[1743409658428,2.62123,1804.0,1803.9,2.51579]
[1743409658630,2.62123,1804.0,1803.9,1.407]
[1743409658830,1.5125,1804.0,1803.8,1.10883]
[1743409659030,1.10892,1803.7,1803.6,2.5887557]
[1743409659225,1.10889,1803.8,1803.7,1.1089]
[1743409659434,2.61099,1803.8,1803.7,1.1089]
[1743409661325,2.61099,1803.8,1803.6,0.0083257]
[1743409661530,1.10892,1803.7,1803.6,1.1172557]
[1743409661935,1.10892,1803.7,1803.6,4.3250557]
[1743409668537,2.611,1803.8,1803.7,1.10892]
[1743409670341,2.611,1803.8,1803.7,2.59472]
[1743409670545,1.5021,1803.8,1803.7,2.59472]
[1743409670738,5.03377,1804.0,1803.7,5.36689]
[1743409670940,5.03377,1804.0,1803.9,1.10875]
[1743409670941,6.41857,1804.0,1803.9,1.10875]
[1743409671339,6.41857,1804.0,1803.9,2.59455]
[1743409672345,6.41857,1804.0,1803.9,2.59459]
[1743409674651,6.41857,1804.0,1803.9,1.4858]
[1743409676644,1.10885,1803.8,1803.7,1.10888]
[1743409676843,1.10891,1803.8,1803.7,1.10892]
[1743409677047,1.10892,1803.7,1803.6,2.2645257]
[1743409677448,6.51482,1803.7,1803.6,2.2645257]
[1743409678646,6.51482,1803.7,1803.6,3.3735057]
[1743409678850,6.51482,1803.7,1803.6,2.2645257]
[1743409680547,2.77273,1803.5,1803.1,1.10924]
[1743409680737,1.1092,1803.3,1803.2,2.58341]
[1743409681140,2.5354,1803.3,1803.2,2.58341]
[1743409681342,1.10922,1803.2,1803.1,1.4315]
[1743409681550,1.10928,1803.1,1803.0,1.4742]
[1743409681753,1.10928,1803.1,1803.0,1.4825257]
[1743409681949,1.10928,1803.1,1803.0,0.0083257]
[1743409682251,3.32228,1803.1,1803.0,0.0083257]
[1743409682651,2.59738,1803.1,1803.0,0.0083257]
[1743409682848,2.59738,1803.1,1803.0,0.7587257]
[1743409683051,2.59738,1803.1,1803.0,2.2575257]
[1743409683450,6.52138,1803.1,1803.0,0.0083257]
[1743409684348,5.4121,1803.1,1803.0,0.0083257]
[1743409684550,6.52138,1803.1,1803.0,1.1176757]
[1743409684747,6.52138,1803.1,1803.0,0.0083257]
[1743409684952,6.52138,1803.1,1803.0,1.5071257]
[1743409688054,2.59738,1803.1,1803.0,2.6164757]
[1743409688352,3.923,1803.4,1803.0,1.5071257]
[1743409688559,1.10916,1803.3,1803.2,1.10918]
[1743409688756,1.10916,1803.3,1803.2,2.60478]
[1743409688957,1.10904,1803.5,1803.4,1.1091]
[1743409689255,4.6106,1803.6,1803.5,1.10904]
[1743409689458,1.10903,1803.6,1803.4,1.10906]
[1743409689658,1.10903,1803.6,1803.5,0.7132]
[1743409689859,2.51177,1803.7,1803.5,1.82224]
[1743409690060,2.51177,1803.7,1803.6,2.60458]
[1743409690249,1.10892,1803.7,1803.6,1.4956]
[1743409690850,2.5200257,1803.8,1803.6,2.60453]
[1743409691259,2.5200257,1803.8,1803.7,2.61502]
[1743409692062,2.5199757,1803.8,1803.7,1.5061]
[1743409692356,2.5199757,1803.8,1803.7,2.61502]
[1743409692558,0.0083257,1803.8,1803.7,2.61502]
[1743409692757,0.0083257,1803.8,1803.7,5.82282]
[1743409694865,0.0083257,1803.8,1803.7,2.61502]
[1743409695067,1.1171757,1803.8,1803.7,1.5061]
[1743409695966,1.1171757,1803.8,1803.7,2.61502]
[1743409696169,0.0083257,1803.8,1803.7,2.61502]
[1743409696364,1.1171757,1803.8,1803.7,2.61502]
[1743409696560,0.0083257,1803.8,1803.7,2.61502]
[1743409696868,1.1171757,1803.8,1803.7,2.61502]
[1743409697668,0.0083257,1803.8,1803.7,2.61502]
[1743409698571,1.4979257,1803.8,1803.7,2.61502]
[1743409698974,0.0083257,1803.8,1803.7,2.61502]
[1743409702475,4.7076,1804.1,1803.7,2.61502]
[1743409702476,3.2078,1804.5,1804.0,1.10873]
[1743409702677,1.10857,1804.3,1804.2,1.10856]
[1743409703173,2.60835,1804.4,1804.3,1.10855]
[1743409703372,1.10855,1804.3,1804.2,2.49775]
[1743409703674,2.59655,1804.3,1804.2,2.5060757]
[1743409705878,2.59655,1804.3,1804.2,3.2196757]
[1743409706375,0.7,1804.4,1804.3,1.10855]
[1743409706584,2.1925,1804.4,1804.3,2.51365]
[1743409707671,3.30099,1804.4,1804.3,2.51365]
[1743409707871,2.1925,1804.4,1804.3,2.51365]
[1743409708181,1.10828,1804.8,1804.7,1.10828]
[1743409708376,2.60078,1804.8,1804.7,1.10828]
[1743409708773,1.4925,1804.8,1804.7,1.10828]
[1743409709281,2.60074,1804.8,1804.7,1.10828]
[1743409710780,2.60079,1804.8,1804.7,1.1083]
[1743409711176,1.4925,1804.8,1804.7,1.1083]
[1743409712385,3.2078,1805.0,1804.9,1.10818]
[1743409712683,1.3871,1805.1,1805.0,1.10806]
[1743409712888,1.3871,1805.1,1804.9,2.1689]
[1743409713076,1.3871,1805.1,1805.0,2.54352]
[1743409713988,2.49516,1805.1,1805.0,2.54352]
[1743409714377,1.3871,1805.1,1805.0,2.54352]
[1743409715082,2.49516,1805.1,1805.0,1.4354]
[1743409715588,2.49516,1805.1,1805.0,2.54352]
[1743409716187,2.49516,1805.1,1805.0,1.4354]
[1743409716582,2.49516,1805.1,1805.0,2.54352]
[1743409716781,2.49516,1805.1,1805.0,1.4354]
[1743409717382,2.49516,1805.1,1805.0,2.54352]
[1743409717383,1.3871,1805.1,1805.0,2.54352]
[1743409718387,1.10806,1805.1,1805.0,2.54352]
[1743409718586,1.10804,1805.2,1805.1,1.10804]
[1743409718891,2.59304,1805.2,1805.1,1.4497]
[1743409719388,2.59304,1805.2,1805.1,2.55776]
[1743409719587,2.59304,1805.2,1805.1,1.4497]
[1743409719784,2.59304,1805.2,1805.1,2.55776]
[1743409720292,1.485,1805.2,1805.1,2.55776]
[1743409720586,2.59299,1805.2,1805.1,2.55776]
[1743409722783,2.59299,1805.2,1805.1,1.4497]
[1743409723687,2.59299,1805.2,1805.1,2.55776]
[1743409723891,2.59299,1805.2,1805.1,1.4497]
[1743409729501,2.59299,1805.2,1805.1,2.55776]
[1743409729694,1.485,1805.2,1805.1,2.55776]
[1743409730395,2.59299,1805.2,1805.1,2.55776]
[1743409731699,2.59299,1805.2,1805.1,1.4497]
[1743409731999,2.59299,1805.2,1805.1,2.55776]
[1743409732701,1.485,1805.2,1805.1,2.55776]
[1743409733195,1.485,1805.2,1805.1,3.27436]
[1743409733402,2.55357,1805.3,1805.2,1.10799]
[1743409733588,2.55357,1805.3,1805.2,3.23739]
[1743409735403,2.55357,1805.3,1805.2,2.1294]
[1743409735901,2.55357,1805.3,1805.2,3.23739]
[1743409736200,2.55357,1805.3,1805.2,2.1294]
[1743409736399,2.55357,1805.3,1805.2,3.23739]
[1743409739005,2.55357,1805.3,1805.2,2.1294]
[1743409739704,1.10816,1805.0,1804.8,3.2078]
[1743409739902,1.10816,1805.0,1804.9,1.4561]
[1743409740596,1.10816,1805.0,1804.9,2.56428]
[1743409740798,1.10816,1805.0,1804.9,1.4561]
[1743409741605,1.10816,1805.0,1804.9,2.56425]
[1743409741606,1.10812,1805.0,1804.9,2.56425]
[1743409741799,1.10812,1805.0,1804.9,1.4561]
[1743409742503,0.6927,1805.1,1804.9,1.4561]